fUSD/lending_fUSD_20240918
["ID","MTS","AMOUNT","RATE_DAILY","PERIOD"]
[338473008,1726681847655,-414.28650528,0.0001288,2]
[338473009,1726681847666,-2082.4977933,0.0001288,2]
[338473010,1726681847679,-721.62621433,0.0001288,2]
[338473011,1726681847690,-314774.00669984,0.0001288,2]
[338473012,1726681847700,-65571.76704291,0.0001288,2]
[338473013,1726681847709,-393.06,0.00012883,2]
[338473014,1726681847719,-171.955,0.00012923,2]
[338473015,1726681847729,-4232.43,0.0001299,2]
[338473016,1726681847742,-2374.4,0.0001299,2]
[338473017,1726681847756,-704.046,0.00012993,2]
[338473018,1726681847771,-499.99,0.00012993,2]
[338473019,1726681847781,-151.0,0.00013,2]
[338473020,1726681847792,-379.85,0.00013,2]
[338473021,1726681847803,-312.72,0.00013,2]
[338473022,1726681847812,-1011.46,0.00013,2]
[338473023,1726681847822,-1100.0,0.00013,2]
[338473024,1726681847832,-151.0,0.00013008,2]
[338473025,1726681847841,-2799.02540087,0.00013016,2]
[338473026,1726681847852,-11121.23,0.00013099,2]
[338473027,1726681847863,-11264.94,0.00013241,2]
[338473028,1726681847873,-2799.02540087,0.00013251,2]
[338473029,1726681847882,-151.0,0.000134,2]
[338473030,1726681847891,-2799.02540087,0.00013487,2]
[338473031,1726681847901,-182.302391,0.00013577,2]
[338473032,1726681847910,-420.766623,0.00013577,2]
[338473033,1726681847919,-273.130806,0.00013577,2]
[338473034,1726681847928,-182.302392,0.00013577,2]
[338473035,1726681847937,-150.0,0.00013699,2]
[338473036,1726681847947,-175.01,0.00013699,2]
[338473037,1726681847957,-173.04,0.00013699,2]
[338473038,1726681847967,-151.0,0.00013699,2]
[338473039,1726681847977,-2462.79192693,0.00013699,2]
[338473040,1726681847987,-500.0,0.000137,2]
[338473041,1726681848006,-500.0,0.000137,2]
[338473042,1726681848015,-500.0,0.000137,2]
[338473043,1726681848024,-500.0,0.000137,2]
[338473044,1726681848034,-500.0,0.000137,2]
[338473045,1726681848043,-500.0,0.000137,2]
[338473046,1726681848052,-500.0,0.000137,2]
[338473047,1726681848061,-500.0,0.000137,2]
[338473048,1726681848069,-500.0,0.000137,2]
[338473049,1726681848078,-500.0,0.000137,2]
[338473050,1726681848086,-500.0,0.000137,2]
[338473051,1726681848094,-500.0,0.000137,2]
[338473052,1726681848103,-500.0,0.000137,2]
[338473053,1726681848112,-500.0,0.000137,2]
[338473054,1726681848122,-500.0,0.000137,2]
[338473055,1726681848132,-500.0,0.000137,2]
[338473056,1726681848141,-500.0,0.000137,2]
[338473057,1726681848151,-500.0,0.000137,2]
[338473058,1726681848160,-500.0,0.000137,2]
[338473059,1726681848170,-500.0,0.000137,2]
[338473060,1726681848179,-500.0,0.000137,2]
[338473061,1726681848188,-500.0,0.000137,2]
[338473062,1726681848198,-500.0,0.000137,2]
[338473063,1726681848208,-403.88,0.000137,2]
[338473064,1726681848217,-500.0,0.000137,2]
[338473065,1726681848226,-500.0,0.000137,2]
[338473066,1726681848236,-500.0,0.000137,2]
[338473067,1726681848252,-500.0,0.000137,2]
[338473068,1726681848262,-500.0,0.000137,2]
[338473069,1726681848271,-646.04,0.000137,2]
[338473070,1726681848281,-500.0,0.000137,2]
[338473071,1726681848290,-150.0,0.00013719,2]
[338473072,1726681848298,-2799.02540087,0.00013722,2]
[338473073,1726681848307,-150.0,0.00013727,2]
[338473074,1726681848316,-182.302391,0.00013746,2]
[338473075,1726681848326,-420.766623,0.00013746,2]
[338473076,1726681848335,-182.302392,0.00013746,2]
[338473077,1726681848345,-500.0,0.00013789,2]
[338473078,1726681848355,-2000.0,0.00013789,2]
[338473079,1726681848365,-500.0,0.00013789,2]
[338473080,1726681848375,-500.0,0.00013789,2]
[338473081,1726681848384,-200.0,0.00013789,2]
[338473082,1726681848393,-151.0,0.0001389,2]
[338473083,1726681848402,-151.0,0.0001389,2]
[338473084,1726681848411,-151.0,0.0001389,2]
[338473085,1726681848420,-825.6098752,0.00013895,2]
[338473086,1726681848430,-1945.1035797,0.00013895,2]
[338473087,1726681848439,-203.6352452,0.00013895,2]
[338473088,1726681848448,-1836.5321048,0.00013895,2]
[338473089,1726681848458,-584.32443765,0.00013895,2]
[338473090,1726681848467,-737.5267302,0.00013895,2]
[338473091,1726681848476,-155.956026,0.00013899,2]
[338473092,1726681848486,-221.78735315,0.00013899,2]
[338473093,1726681848498,-2000.0,0.00013899,2]
[338473094,1726681848507,-11091.94,0.000139,2]
[338473095,1726681848517,-151.0,0.000139,2]
[338473096,1726681848527,-151.0,0.000139,2]
[338473097,1726681848536,-151.0,0.000139,2]
[338473098,1726681848545,-151.0,0.000139,2]
[338473099,1726681848555,-151.0,0.000139,2]
[338473100,1726681848564,-151.0,0.000139,2]
[338473101,1726681848573,-151.0,0.000139,2]
[338473102,1726681848584,-151.0,0.000139,2]
[338473103,1726681848593,-151.0,0.000139,2]
[338473104,1726681848603,-3254.7639,0.000139,2]
[338473105,1726681848612,-57667.74926513,0.000139,2]
[338473106,1726681848636,-253.7440002,0.000139,2]
[338473107,1726682023187,226.93,0.00010959,2]
[338473108,1726682067835,73.07,0.00012711,2]
[338473109,1726682067860,897.42,0.00012711,2]
[338473110,1726682316572,233.89,0.00012554,2]
[338473111,1726682332857,376.11,0.00010636,2]
[338473112,1726682343386,500.0,0.00012511,2]
[338473113,1726682457213,250.0,0.00012548,2]
[338473114,1726682497745,360.0,0.00012743,2]
[338473116,1726682553691,21062.68,0.00012597,2]
[338473117,1726682559061,236.8,0.00012597,2]
[338473118,1726682585627,653.43,0.00012698,2]
[338473119,1726682666185,165.59,0.00012568,2]
[338473120,1726682724482,250.0,0.00012607,2]
[338473121,1726682813984,154.81,0.00012643,2]
[338473122,1726682814516,154.81,0.00012651,2]
[338473123,1726682814759,154.81,0.00012659,2]
[338473124,1726682815037,154.81,0.00012667,2]
[338473125,1726682815448,154.81,0.00012675,2]
[338473126,1726682815729,154.81,0.00012683,2]
[338473127,1726682815815,154.81,0.00012691,2]
[338473128,1726682815929,154.81,0.00012699,2]
[338473129,1726682816206,154.81,0.00012707,2]
[338473130,1726682907484,367.88,0.00011013,2]
[338473147,1726683031518,-414.15847229,0.0001289,2]
[338473148,1726683032976,-4060.33187185,0.0001289,2]
[338473149,1726683032988,-438.58020339,0.0001289,2]
[338473150,1726683033136,-1181.74205416,0.0001289,2]
[338473151,1726683033146,-163.19,0.00012992,2]
[338473152,1726683033156,-499.99,0.00012992,2]
[338473153,1726683033166,-300.0,0.00012999,2]
[338473154,1726683033175,-403.85,0.00013,2]
[338473155,1726683033185,-176.36372535,0.00013,2]
[338473156,1726683033195,-319.94,0.00013,2]
[338473157,1726683033205,-1013.22,0.00013,2]
[338473158,1726683033215,-763.2,0.00013021,2]
[338473159,1726683033225,-167.776,0.00013258,2]
[338473160,1726683033235,-652.66,0.00013258,2]
[338473161,1726683033244,-367.88,0.00013277,2]
[338473162,1726683033254,-150.0,0.00013699,2]
[338473163,1726683033263,-150.0,0.00013699,2]
[338473164,1726683033273,-500.0,0.000137,2]
[338473165,1726683033282,-500.0,0.000137,2]
[338473166,1726683033292,-500.0,0.000137,2]
[338473167,1726683033302,-500.0,0.000137,2]
[338473168,1726683033312,-500.0,0.000137,2]
[338473169,1726683033322,-500.0,0.000137,2]
[338473170,1726683033332,-500.0,0.000137,2]
[338473172,1726683033341,-500.0,0.000137,2]
[338473174,1726683033351,-500.0,0.000137,2]
[338473175,1726683033360,-500.0,0.000137,2]
[338473177,1726683033369,-500.0,0.000137,2]
[338473179,1726683033379,-500.0,0.000137,2]
[338473180,1726683033388,-500.0,0.000137,2]
[338473181,1726683033398,-500.0,0.000137,2]
[338473182,1726683033407,-500.0,0.000137,2]
[338473183,1726683033418,-500.0,0.000137,2]
[338473184,1726683033429,-500.0,0.000137,2]
[338473185,1726683033439,-500.0,0.000137,2]
[338473186,1726683033448,-500.0,0.000137,2]
[338473187,1726683033458,-500.0,0.000137,2]
[338473188,1726683033468,-500.0,0.000137,2]
[338473189,1726683033478,-500.0,0.000137,2]
[338473190,1726683033487,-500.0,0.000137,2]
[338473191,1726683033498,-500.0,0.000137,2]
[338473192,1726683033507,-500.0,0.000137,2]
[338473193,1726683033517,-500.0,0.000137,2]
[338473194,1726683033527,-500.0,0.000137,2]
[338473195,1726683033536,-500.0,0.000137,2]
[338473196,1726683033546,-500.0,0.000137,2]
[338473197,1726683033556,-500.0,0.000137,2]
[338473198,1726683033566,-500.0,0.000137,2]
[338473199,1726683033575,-500.0,0.000137,2]
[338473200,1726683033585,-500.0,0.000137,2]
[338473201,1726683033594,-500.0,0.000137,2]
[338473202,1726683033604,-500.0,0.000137,2]
[338473203,1726683033615,-500.0,0.000137,2]
[338473204,1726683033624,-226.51041894,0.000137,2]
[338473205,1726683033685,-273.48958106,0.000137,2]
[338473206,1726683033695,-500.0,0.000137,2]
[338473207,1726683033705,-500.0,0.000137,2]
[338473208,1726683033715,-500.0,0.000137,2]
[338473209,1726683033725,-500.0,0.000137,2]
[338473210,1726683033734,-429.55166313,0.000137,2]
[338473211,1726683033746,-70.44833687,0.000137,2]
[338473212,1726683033756,-500.0,0.000137,2]
[338473213,1726683033766,-500.0,0.000137,2]
[338473214,1726683033775,-500.0,0.000137,2]
[338473215,1726683033784,-500.0,0.000137,2]
[338473216,1726683033795,-500.0,0.000137,2]
[338473217,1726683033804,-500.0,0.000137,2]
[338473218,1726683033813,-500.0,0.000137,2]
[338473219,1726683033823,-500.0,0.000137,2]
[338473220,1726683033833,-500.0,0.000137,2]
[338473221,1726683033842,-116.10653314,0.000137,2]
[338473231,1726683037449,-383.89346686,0.000137,2]
[338473233,1726683037459,-500.0,0.000137,2]
[338473235,1726683037470,-481.9,0.000137,2]
[338473237,1726683037479,-500.0,0.000137,2]
[338473239,1726683037488,-500.0,0.000137,2]
[338473241,1726683037498,-500.0,0.000137,2]
[338473243,1726683037507,-500.0,0.000137,2]
[338473244,1726683037517,-500.0,0.000137,2]
[338473245,1726683037526,-500.0,0.000137,2]
[338473246,1726683037536,-500.0,0.000137,2]
[338473247,1726683037545,-500.0,0.000137,2]
[338473248,1726683037554,-500.0,0.000137,2]
[338473249,1726683037563,-500.0,0.000137,2]
[338473250,1726683037572,-500.0,0.000137,2]
[338473251,1726683037581,-500.0,0.000137,2]
[338473252,1726683037591,-500.0,0.000137,2]
[338473253,1726683037600,-500.0,0.000137,2]
[338473254,1726683037609,-500.0,0.000137,2]
[338473255,1726683037619,-500.0,0.000137,2]
[338473256,1726683037628,-500.0,0.000137,2]
[338473257,1726683037638,-253.36,0.000137,2]
[338473258,1726683037648,-500.0,0.000137,2]
[338473259,1726683037657,-500.0,0.00013789,2]
[338473260,1726683037667,-2000.0,0.00013789,2]
[338473261,1726683037677,-500.0,0.00013789,2]
[338473262,1726683037687,-200.0,0.00013789,2]
[338473263,1726683037697,-396.29,0.00013789,2]
[338473264,1726683037707,-1575.3112,0.00013795,2]
[338473265,1726683037717,-110267.0,0.000138,2]
[338473266,1726683037727,-1902.0,0.00013803,2]
[338473267,1726683037736,-661.017,0.00013803,2]
[338473268,1726683037746,-3346.0,0.00013822,2]
[338473269,1726683037756,-806.0,0.00013822,2]
[338473270,1726683037765,-1933.0,0.00013822,2]
[338473271,1726683037776,-253.396,0.00013822,2]
[338473273,1726683037786,-5865.0,0.00013822,2]
[338473274,1726683037795,-13486.0,0.00013822,2]
[338473276,1726683037805,-150.0,0.00013822,2]
[338473278,1726683037815,-1146.0,0.00013822,2]
[338473280,1726683037825,-1161.33,0.00013822,2]
[338473282,1726683037835,-297.8154,0.0001383,2]
[338473284,1726683037844,-1013.22,0.00013855,2]
[338473286,1726683037853,-494.44794332,0.00013873,2]
[338473289,1726683037863,-21879.5971669,0.00013895,2]
[338473292,1726683037872,-1258.6400305,0.00013895,2]
[338473294,1726683037882,-6860.1596384,0.00013895,2]
[338473296,1726683037892,-719.8994793,0.00013895,2]
[338473298,1726683037901,-13048.751063,0.00013895,2]
[338473300,1726683037911,-84352.5797645,0.00013895,2]
[338473301,1726683037920,-5172.74662935,0.00013899,2]
[338473302,1726683037931,-1037.72742797,0.00013899,5]
[338473303,1726683037941,-500.0,0.00013904,2]
[338473304,1726683037950,-500.0,0.00013904,2]
[338473305,1726683037960,-182.302391,0.00013916,2]
[338473306,1726683037969,-420.766623,0.00013916,2]
[338473307,1726683037978,-182.302392,0.00013916,2]
[338473308,1726683037988,-608.50976929,0.00013969,2]
[338473309,1726683037997,-163.6066175,0.00014,2]
[338473310,1726683038007,-32284.72093839,0.00014,2]
[338473311,1726683038016,-152.0,0.00014048,2]
[338473312,1726683038026,-151.68,0.00014048,2]
[338473313,1726683038035,-200.0,0.00014048,2]
[338473314,1726683038045,-209.076,0.00014048,2]
[338473315,1726683038055,-164.0,0.00014048,2]
[338473316,1726683038064,-164.068,0.00014048,2]
[338473317,1726683038074,-297.134,0.00014048,2]
[338473318,1726683038083,-151.175,0.00014048,2]
[338473319,1726683038092,-156.338,0.00014048,2]
[338473320,1726683038101,-250.0,0.00014048,2]
[338473321,1726683038111,-229.876,0.00014048,2]
[338473322,1726683038120,-262.393,0.00014048,2]
[338473323,1726683038130,-170.605,0.00014048,2]
[338473324,1726683038139,-150.766,0.00014048,2]
[338473325,1726683038149,-1262.0,0.00014048,2]
[338473326,1726683038158,-1548.0,0.00014048,2]
[338473327,1726683038168,-625.0,0.00014048,2]
[338473328,1726683038178,-448.0,0.00014048,2]
[338473329,1726683038187,-150.0,0.00014048,2]
[338473330,1726683038197,-810.0,0.00014048,2]
[338473331,1726683038206,-558.0,0.00014048,2]
[338473332,1726683038216,-932.0,0.00014048,2]
[338473333,1726683038225,-355.0,0.00014059,2]
[338473334,1726683038234,-150.0,0.00014059,2]
[338473335,1726683038243,-182.302391,0.00014086,2]
[338473336,1726683038252,-420.766623,0.00014086,2]
[338473338,1726683038262,-182.302392,0.00014086,2]
[338473339,1726683038271,-165.59,0.00014139,2]
[338473340,1726683038280,-600.0,0.00014162,2]
[338473341,1726683038289,-600.0,0.00014162,2]
[338473343,1726683038299,-236.8,0.00014172,2]
[338473345,1726683038308,-300.0,0.00014192,2]
[338473347,1726683038318,-153.64,0.00014192,2]
[338473349,1726683038327,-236.54,0.00014207,2]
[338473351,1726683038337,-2141.34639597,0.0001421,7]
[338473353,1726683038346,-500.0,0.00014213,2]
[338473354,1726683038355,-500.0,0.00014222,2]
[338473356,1726683038364,-204.0,0.0001423,2]
[338473358,1726683038374,-500.0,0.0001423,2]
[338473360,1726683038384,-1000.0,0.00014247,2]
[338473362,1726683038393,-371.9686,0.00014247,2]
[338473364,1726683038403,-182.302391,0.00014256,2]
[338473366,1726683038413,-420.766623,0.00014256,2]
[338473368,1726683038424,-182.302392,0.00014256,2]
[338473370,1726683038434,-420.0,0.00014256,2]
[338473393,1726683038680,-1000.0,0.00014262,2]
[338473397,1726683038708,-1000.0,0.00014277,2]
[338473398,1726683038718,-1000.0,0.00014292,2]
[338473401,1726683038728,-160.46,0.00014295,2]
[338473403,1726683038738,-1000.0,0.00014307,2]
[338473404,1726683038747,-152.0,0.00014311,3]
[338473407,1726683038757,-1000.0,0.00014322,2]
[338473409,1726683038767,-843.00000007,0.00014326,2]
[338473411,1726683038776,-1000.0,0.00014337,2]
[338473412,1726683038786,-1000.0,0.00014352,2]
[338473414,1726683038796,-1000.0,0.00014367,2]
[338473416,1726683038806,-5043.50273925,0.00014381,2]
[338473418,1726683038815,-1000.0,0.00014382,2]
[338473420,1726683038825,-455.0,0.0001439,2]
[338473422,1726683038834,-500.0,0.0001439,30]
[338473424,1726683038844,-500.0,0.0001439,30]
[338473426,1726683038853,-500.0,0.0001439,30]
[338473428,1726683038863,-500.0,0.0001439,30]
[338473430,1726683038872,-500.0,0.0001439,30]
[338473432,1726683038882,-500.0,0.0001439,30]
[338473434,1726683038891,-500.0,0.0001439,30]
[338473436,1726683038901,-500.0,0.0001439,30]
[338473438,1726683038912,-500.0,0.0001439,30]
[338473440,1726683038922,-500.0,0.0001439,30]
[338473442,1726683038932,-1000.0,0.00014397,2]
[338473444,1726683038941,-1000.0,0.000144,4]
[338473446,1726683038951,-1000.0,0.000144,4]
[338473448,1726683038960,-1000.0,0.00014412,2]
[338473450,1726683038970,-150.0,0.0001442,2]
[338473452,1726683038980,-1000.0,0.00014427,2]
[338473454,1726683038990,-1000.0,0.00014442,2]
[338473456,1726683038999,-1000.0,0.00014457,2]
[338473458,1726683039009,-1000.0,0.00014472,2]
[338473460,1726683039019,-1000.0,0.00014487,2]
[338473462,1726683039028,-1000.0,0.00014502,2]
[338473464,1726683039046,-1000.0,0.00014517,2]
[338473466,1726683039062,-818.85,0.00014521,2]
[338473468,1726683039071,-1000.0,0.00014521,2]
[338473470,1726683039081,-1000.0,0.00014532,2]
[338473472,1726683039091,-1000.0,0.00014547,2]
[338473474,1726683039101,-1000.0,0.00014562,2]
[338473476,1726683039111,-400.0,0.0001457,2]
[338473478,1726683039121,-529.2544849,0.0001457,2]
[338473480,1726683039131,-400.0,0.0001457,2]
[338473482,1726683039141,-1000.0,0.00014577,2]
[338473484,1726683039150,-1000.0,0.00014592,2]
[338473486,1726683039160,-500.0,0.00014598,2]
[338473488,1726683039169,-500.0,0.00014598,2]
[338473490,1726683039180,-342.20702753,0.00014598,2]
[338473492,1726683039189,-31653.59372227,0.00014599,2]
[338473494,1726683039199,-1000.0,0.00014607,2]
[338473496,1726683039208,-152.31,0.00014609,2]
[338473498,1726683039217,-72382.7647291,0.00014619,2]
[338473500,1726683039228,-1000.0,0.00014622,2]
[338473502,1726683039237,-19974.7610124,0.00014629,2]
[338473504,1726683039247,-1091.3143509,0.00014629,2]
[338473506,1726683039256,-6187.7127658,0.00014629,2]
[338473509,1726683039266,-11201.4566238,0.00014629,2]
[338473512,1726683039276,-1000.0,0.00014637,2]
[338473514,1726683039285,-763.2,0.00014648,2]
[338473516,1726683039295,-1000.0,0.00014652,2]
[338473518,1726683039305,-565.0,0.00014654,2]
[338473520,1726683039314,-1000.0,0.00014667,2]
[338473522,1726683039325,-400.0,0.0001467,2]
[338473524,1726683039334,-162.41102684,0.00014673,2]
[338473526,1726683039345,-632.50572527,0.00014673,2]
[338473528,1726683039356,-500.0,0.00014673,2]
[338473530,1726683039366,-60412.9496937,0.00014679,2]
[338473532,1726683039375,-1000.0,0.00014682,2]
[338473534,1726683039384,-40024.53351438,0.00014689,2]
[338473536,1726683039394,-151.0,0.00014689,2]
[338473538,1726683039403,-164.528677,0.00014689,2]
[338473540,1726683039413,-1000.0,0.00014697,2]
[338473542,1726683039425,-150.0,0.000147,2]
[338473544,1726683039434,-506.0,0.000147,2]
[338473546,1726683039444,-1013.22,0.0001471,2]
[338473548,1726683039453,-1000.0,0.00014712,2]
[338473550,1726683039463,-152.31,0.00014722,2]
[338473552,1726683039473,-1000.0,0.00014727,2]
[338473554,1726683039483,-18069.9248578,0.00014732,2]
[338473556,1726683039493,-1000.0,0.00014742,2]
[338473558,1726683039505,-1000.0,0.00014757,2]
[338473560,1726683039516,-1000.0,0.00014772,2]
[338473562,1726683039525,-923.9886713,0.00014774,2]
[338473564,1726683039535,-5515.2658932,0.00014774,2]
[338473566,1726683039563,-9354.1621847,0.00014774,2]
[338473567,1726683039572,-150.0,0.0001478,2]
[338473569,1726683039582,-18612.87004926,0.00014784,2]
[338473571,1726683039592,-152.0,0.00014785,4]
[338473573,1726683039602,-1000.0,0.00014787,2]
[338473575,1726683039611,-3000.0,0.000148,2]
[338473577,1726683039622,-1000.0,0.00014802,2]
[338473579,1726683039631,-1000.0,0.00014817,2]
[338473581,1726683039641,-1000.0,0.00014832,2]
[338473583,1726683039650,-1225.96271825,0.00014834,2]
[338473585,1726683039659,-1000.0,0.00014847,2]
[338473587,1726683039669,-11773.87799834,0.0001485,2]
[338473589,1726683039678,-1000.0,0.00014862,2]
[338473591,1726683039688,-172.76901356,0.0001487,2]
[338473593,1726683039698,-1000.0,0.00014877,2]
[338473595,1726683039707,-192.0686,0.00014879,2]
[338473597,1726683039717,-325.21677664,0.0001488,2]
[338473599,1726683039727,-175.18324582,0.0001488,2]
[338473601,1726683039737,-325.21677663,0.00014885,2]
[338473603,1726683039746,-500.0,0.00014889,2]
[338473605,1726683039756,-1000.85,0.00014889,2]
[338473607,1726683039765,-1000.0,0.00014889,2]
[338473609,1726683039775,-500.0,0.00014889,2]
[338473611,1726683039784,-325.21677663,0.0001489,2]
[338473613,1726683039793,-1000.0,0.00014892,2]
[338473615,1726683039803,-325.21677663,0.00014895,2]
[338473617,1726683039812,-1002.3761,0.00014899,2]
[338473619,1726683039822,-2000.0,0.000149,2]
[338473621,1726683039832,-2000.0,0.000149,2]
[338473623,1726683039841,-980.35352578,0.000149,2]
[338473625,1726683039850,-340.72615337,0.000149,2]
[338473627,1726683039860,-325.21677663,0.000149,2]
[338473629,1726683039869,-8500.0,0.000149,2]
[338473631,1726683039879,-205.01068911,0.000149,2]
[338473633,1726683039889,-40289.0873414,0.000149,2]
[338473635,1726683039899,-1320.48323144,0.000149,2]
[338473637,1726683039909,-1000.0,0.00014907,2]
[338473639,1726683039918,-1000.0,0.00014922,2]
[338473641,1726683039928,-1000.0,0.00014937,2]
[338473643,1726683039937,-48443.1346584,0.00014939,2]
[338473645,1726683039947,-152.31,0.0001494,2]
[338473647,1726683039957,-16165.0887033,0.0001495,2]
[338473649,1726683039966,-756.6629917,0.0001495,2]
[338473651,1726683039976,-4842.8190206,0.0001495,2]
[338473653,1726683039985,-7506.8677455,0.0001495,2]
[338473655,1726683039995,-151.0,0.0001495,2]
[338473657,1726683040005,-1000.0,0.00014952,2]
[338473659,1726683040015,-151.0,0.0001496,2]
[338473661,1726683040025,-151.0,0.0001496,2]
[338473663,1726683040035,-151.0,0.0001496,2]
[338473665,1726683040044,-151.0,0.0001496,2]
[338473667,1726683040054,-151.0,0.0001496,2]
[338473669,1726683040078,-153.244456,0.0001496,2]
[338473671,1726683040088,-153.244456,0.0001496,2]
[338473673,1726683040098,-151.0,0.0001496,2]
[338473675,1726683040108,-281.722012,0.0001496,2]
[338473677,1726683040117,-151.0,0.0001496,2]
[338473679,1726683040126,-151.0,0.0001496,2]
[338473681,1726683040136,-151.0,0.0001496,2]
[338473683,1726683040145,-151.0,0.0001496,2]
[338473685,1726683040154,-278.379902,0.0001496,2]
[338473686,1726683040164,-151.0,0.0001496,2]
[338473688,1726683040174,-151.0,0.0001496,2]
[338473691,1726683040184,-478.034595,0.0001496,2]
[338473693,1726683040193,-151.0,0.0001496,2]
[338473695,1726683040203,-478.034595,0.0001496,2]
[338473697,1726683040212,-151.0,0.0001496,2]
[338473698,1726683040221,-151.0,0.0001496,2]
[338473700,1726683040231,-151.0,0.0001496,2]
[338473702,1726683040240,-181.458085,0.0001496,2]
[338473704,1726683040250,-181.458085,0.0001496,2]
[338473706,1726683040259,-220.627076,0.0001496,2]
[338473708,1726683040269,-220.627076,0.0001496,2]
[338473710,1726683040278,-219.202956,0.0001496,2]
[338473712,1726683040288,-219.202956,0.0001496,2]
[338473714,1726683040297,-155.297023,0.0001496,2]
[338473716,1726683040307,-151.0,0.0001496,2]
[338473718,1726683040317,-697.705497,0.0001496,2]
[338473720,1726683040327,-697.705497,0.0001496,2]
[338473723,1726683040337,-151.0,0.0001496,2]
[338473725,1726683040347,-151.0,0.0001496,2]
[338473727,1726683040357,-151.0,0.0001496,2]
[338473729,1726683040366,-164.098025,0.0001496,2]
[338473730,1726683040376,-151.0,0.0001496,2]
[338473732,1726683040385,-151.0,0.0001496,2]
[338473734,1726683040396,-151.0,0.0001496,2]
[338473736,1726683040405,-151.0,0.0001496,2]
[338473738,1726683040416,-255.171053,0.0001496,2]
[338473740,1726683040429,-151.0,0.0001496,2]
[338473742,1726683040439,-267.641508,0.0001496,2]
[338473744,1726683040449,-151.0,0.0001496,2]
[338473746,1726683040459,-151.0,0.0001496,2]
[338473748,1726683040470,-250.924466,0.0001496,2]
[338473750,1726683040480,-151.0,0.0001496,2]
[338473752,1726683040489,-151.0,0.0001496,2]
[338473754,1726683040500,-153.735836,0.0001496,2]
[338473756,1726683040509,-153.735836,0.0001496,2]
[338473758,1726683040519,-151.0,0.0001496,2]
[338473759,1726683040528,-151.0,0.0001496,2]
[338473761,1726683040537,-151.0,0.0001496,2]
[338473763,1726683040547,-151.0,0.0001496,2]
[338473765,1726683040557,-1000.0,0.00014967,2]
[338473767,1726683040572,-151.0,0.00014969,2]
[338473769,1726683040581,-151.0,0.00014969,2]
[338473771,1726683040596,-155.25114721,0.00014969,2]
[338473773,1726683040606,-400.0,0.0001497,2]
[338473775,1726683040615,-400.0,0.0001497,2]
[338473777,1726683040625,-400.0,0.0001497,2]
[338473779,1726683040634,-151.0,0.0001497,2]
[338473781,1726683040644,-164.575246,0.0001497,2]
[338473783,1726683040654,-164.575246,0.0001497,2]
[338473785,1726683040664,-163.271742,0.0001497,2]
[338473787,1726683040673,-163.271742,0.0001497,2]
[338473789,1726683040683,-14260.2525487,0.0001497,2]
[338473791,1726683040692,-316.907744,0.0001497,2]
[338473793,1726683040702,-316.907744,0.0001497,2]
[338473795,1726683040712,-589.3373121,0.0001497,2]
[338473797,1726683040721,-4170.372148,0.0001497,2]